[Event "Early-Titled-Tuesday-Blitz-January-30-2024"]
[Site "Chess.com"]
[Date "2024.01.30"]
[Round "2"]
[White "sjoerd893"]
[Black "AustinThomas12345"]
[Result "0-1"]
[WhiteElo "2490"]
[BlackElo "2508"]
[TimeControl "180+1"]
[EndTime "8:19:27 PST"]
[Termination "AustinThomas12345 won by resignation"]

1. e4 {[%clk 0:03:00.9]} 1... c5 {[%clk 0:02:57.6]} 2. Nf3 {[%clk 0:03:00.5]}
2... g6 {[%clk 0:02:56.9]} 3. c4 {[%clk 0:02:59.6]} 3... Bg7 {[%clk 0:02:55.9]}
4. d4 {[%clk 0:03:00.1]} 4... cxd4 {[%clk 0:02:56.8]} 5. Nxd4 {[%clk 0:03:00.1]}
5... Nc6 {[%clk 0:02:56.7]} 6. Be3 {[%clk 0:03:00]} 6... Nf6 {[%clk 0:02:56.6]}
7. Nc3 {[%clk 0:02:59.7]} 7... O-O {[%clk 0:02:56.6]} 8. Be2 {[%clk 0:02:59.7]}
8... d6 {[%clk 0:02:56.5]} 9. O-O {[%clk 0:02:59.6]} 9... Bd7 {[%clk 0:02:56.6]}
10. Qd2 {[%clk 0:02:59.4]} 10... Nxd4 {[%clk 0:02:53]} 11. Bxd4 {[%clk
0:02:59.8]} 11... Bc6 {[%clk 0:02:53.9]} 12. f3 {[%clk 0:02:59.6]} 12... Nd7
{[%clk 0:02:53.7]} 13. Be3 {[%clk 0:03:00.1]} 13... a5 {[%clk 0:02:53.7]} 14. b3
{[%clk 0:02:59.7]} 14... Nc5 {[%clk 0:02:52.7]} 15. Rab1 {[%clk 0:02:59.4]}
15... Qb6 {[%clk 0:02:48.5]} 16. Rfc1 {[%clk 0:02:53.4]} 16... Qb4 {[%clk
0:02:47]} 17. Qe1 {[%clk 0:02:36]} 17... Rfc8 {[%clk 0:02:43.6]} 18. Bf1 {[%clk
0:02:30.6]} 18... Rab8 {[%clk 0:02:35.7]} 19. g3 {[%clk 0:02:13.5]} 19... Ra8
{[%clk 0:02:31.9]} 20. Rc2 {[%clk 0:02:09.9]} 20... a4 {[%clk 0:02:26.5]} 21. a3
{[%clk 0:01:57.8]} 21... Qxa3 {[%clk 0:02:21.2]} 22. b4 {[%clk 0:01:56.3]} 22...
Nb3 {[%clk 0:02:15.6]} 23. b5 {[%clk 0:01:54.6]} 23... Bd7 {[%clk 0:02:15.4]}
24. Nd5 {[%clk 0:01:54.1]} 24... Kf8 {[%clk 0:01:56.8]} 25. Nb6 {[%clk
0:01:49.3]} 25... Be6 {[%clk 0:01:53.6]} 26. Nxa8 {[%clk 0:01:14.4]} 26... Rxa8
{[%clk 0:01:52.3]} 27. h4 {[%clk 0:01:15]} 27... Nd4 {[%clk 0:01:49.9]} 28. Rf2
{[%clk 0:01:10.7]} 28... Qc5 {[%clk 0:01:25.5]} 29. Qb4 {[%clk 0:01:04.1]} 29...
Qxb4 {[%clk 0:01:24.1]} 30. Rxb4 {[%clk 0:01:05]} 30... a3 {[%clk 0:01:24.6]}
31. Ra2 {[%clk 0:01:04]} 31... Nxf3+ {[%clk 0:01:21.9]} 32. Kf2 {[%clk 0:01:02]}
32... Ne5 {[%clk 0:01:18]} 33. Bc1 {[%clk 0:00:50.1]} 33... Ng4+ {[%clk
0:01:07.9]} 34. Kg2 {[%clk 0:00:45.7]} 34... Bd4 {[%clk 0:01:04.4]} 35. Be2
{[%clk 0:00:37.6]} 35... Ne5 {[%clk 0:00:57.6]} 36. Rxa3 {[%clk 0:00:31.6]}
36... Rxa3 {[%clk 0:00:42.2]} 37. Bxa3 {[%clk 0:00:32.5]} 37... Bc5 {[%clk
0:00:41]} 38. Ra4 {[%clk 0:00:32]} 38... Bxa3 {[%clk 0:00:38.1]} 39. Rxa3 {[%clk
0:00:32.9]} 39... Bxc4 {[%clk 0:00:32.8]} 40. Bxc4 {[%clk 0:00:29.6]} 40... Nxc4
{[%clk 0:00:33.7]} 41. Rc3 {[%clk 0:00:23.7]} 41... Na5 {[%clk 0:00:30.5]} 42.
Rc8+ {[%clk 0:00:22.2]} 42... Kg7 {[%clk 0:00:30.4]} 43. Rc7 {[%clk 0:00:22.7]}
43... Kf6 {[%clk 0:00:27.4]} 44. Kf3 {[%clk 0:00:23.1]} 44... b6 {[%clk
0:00:26.2]} 45. Ke3 {[%clk 0:00:23.3]} 45... Ke6 {[%clk 0:00:25.8]} 46. Kd3
{[%clk 0:00:20.7]} 46... Nb3 {[%clk 0:00:25.5]} 47. Rc6 {[%clk 0:00:17.5]} 47...
Nc5+ {[%clk 0:00:25.3]} 48. Kd4 {[%clk 0:00:16]} 48... Nd7 {[%clk 0:00:25.3]}
49. Rc7 {[%clk 0:00:15.1]} 49... h5 {[%clk 0:00:24.4]} 50. Rb7 {[%clk
0:00:14.4]} 50... f5 {[%clk 0:00:23.8]} 51. Ke3 {[%clk 0:00:12.6]} 51... fxe4
{[%clk 0:00:23.4]} 52. Kxe4 {[%clk 0:00:12.7]} 52... Nc5+ {[%clk 0:00:23.9]} 53.
Kf4 {[%clk 0:00:12.3]} 53... Nxb7 {[%clk 0:00:23.7]} 54. Kg5 {[%clk 0:00:13.1]}
54... Kf7 {[%clk 0:00:24.4]} 0-1

[Event "Early-Titled-Tuesday-Blitz-January-30-2024"]
[Site "Chess.com"]
[Date "2024.01.30"]
[Round "2"]
[White "Snegokhod"]
[Black "Matibar"]
[Result "1/2-1/2"]
[WhiteElo "2559"]
[BlackElo "2797"]
[TimeControl "180+1"]
[EndTime "8:19:28 PST"]
[Termination "Game drawn by stalemate"]

1. b3 {[%clk 0:02:56.6]} 1... e5 {[%clk 0:02:54.6]} 2. Bb2 {[%clk 0:02:52.8]}
2... d6 {[%clk 0:02:54.9]} 3. g3 {[%clk 0:02:52.2]} 3... Nc6 {[%clk 0:02:52.8]}
4. Bg2 {[%clk 0:02:52.6]} 4... g6 {[%clk 0:02:53.3]} 5. e3 {[%clk 0:02:49.5]}
5... Bg7 {[%clk 0:02:53.2]} 6. Ne2 {[%clk 0:02:49.8]} 6... h5 {[%clk 0:02:52.7]}
7. h3 {[%clk 0:02:48.8]} 7... f5 {[%clk 0:02:50.1]} 8. h4 {[%clk 0:02:48.3]}
8... Nf6 {[%clk 0:02:50]} 9. d3 {[%clk 0:02:47.8]} 9... O-O {[%clk 0:02:48.7]}
10. Nd2 {[%clk 0:02:47.4]} 10... d5 {[%clk 0:02:46.4]} 11. Nf3 {[%clk
0:02:45.2]} 11... Qe7 {[%clk 0:02:43.2]} 12. a3 {[%clk 0:02:43]} 12... a5 {[%clk
0:02:41.5]} 13. c4 {[%clk 0:02:39.4]} 13... Rd8 {[%clk 0:02:34.7]} 14. Qc2
{[%clk 0:02:38.9]} 14... e4 {[%clk 0:02:29.8]} 15. dxe4 {[%clk 0:02:37.6]} 15...
dxe4 {[%clk 0:02:29.4]} 16. Ng5 {[%clk 0:02:36.4]} 16... Ne5 {[%clk 0:02:27.4]}
17. O-O {[%clk 0:02:31.3]} 17... Nd3 {[%clk 0:02:23.9]} 18. Bc3 {[%clk
0:02:27.6]} 18... Ng4 {[%clk 0:02:14.1]} 19. Nf4 {[%clk 0:02:22.5]} 19... Nxf4
{[%clk 0:02:07.2]} 20. gxf4 {[%clk 0:02:15.8]} 20... Be6 {[%clk 0:01:57.7]} 21.
Bxg7 {[%clk 0:02:13.4]} 21... Kxg7 {[%clk 0:01:58.6]} 22. Rfd1 {[%clk
0:02:03.5]} 22... b6 {[%clk 0:01:52.7]} 23. Rxd8 {[%clk 0:02:01.9]} 23... Rxd8
{[%clk 0:01:51.6]} 24. Rd1 {[%clk 0:02:02.5]} 24... Bg8 {[%clk 0:01:45]} 25.
Rxd8 {[%clk 0:01:56.3]} 25... Qxd8 {[%clk 0:01:45.1]} 26. c5 {[%clk 0:01:51.3]}
26... Qd3 {[%clk 0:01:32.6]} 27. Qb2+ {[%clk 0:01:50.8]} 27... Kf8 {[%clk
0:01:21.9]} 28. cxb6 {[%clk 0:01:49.8]} 28... cxb6 {[%clk 0:01:20.4]} 29. b4
{[%clk 0:01:45.8]} 29... Bc4 {[%clk 0:00:47.2]} 30. Qh8+ {[%clk 0:01:31.6]}
30... Ke7 {[%clk 0:00:46.9]} 31. Qg7+ {[%clk 0:01:30.9]} 31... Kd6 {[%clk
0:00:44.9]} 32. Qxg6+ {[%clk 0:01:30.7]} 32... Kc7 {[%clk 0:00:45.2]} 33. Qg7+
{[%clk 0:01:16.1]} 33... Kb8 {[%clk 0:00:42.5]} 34. Qa1 {[%clk 0:00:48.9]} 34...
Qd2 {[%clk 0:00:42]} 35. Nh3 {[%clk 0:00:46.4]} 35... axb4 {[%clk 0:00:37.1]}
36. axb4 {[%clk 0:00:47.2]} 36... Qxb4 {[%clk 0:00:37]} 37. f3 {[%clk
0:00:41.2]} 37... Nxe3 {[%clk 0:00:25.6]} 38. fxe4 {[%clk 0:00:33.6]} 38... Qc5
{[%clk 0:00:24.9]} 39. Qe5+ {[%clk 0:00:23.7]} 39... Qxe5 {[%clk 0:00:24.4]} 40.
fxe5 {[%clk 0:00:24.6]} 40... Nxg2 {[%clk 0:00:24.2]} 41. Kxg2 {[%clk
0:00:24.6]} 41... fxe4 {[%clk 0:00:24.6]} 42. Kf2 {[%clk 0:00:23.7]} 42... b5
{[%clk 0:00:22.5]} 43. Ke3 {[%clk 0:00:20.7]} 43... b4 {[%clk 0:00:21]} 44. Nf2
{[%clk 0:00:16.7]} 44... Bd5 {[%clk 0:00:19]} 45. Nxe4 {[%clk 0:00:13.6]} 45...
Bxe4 {[%clk 0:00:18.7]} 46. Kxe4 {[%clk 0:00:13.9]} 46... Kc7 {[%clk 0:00:19.4]}
47. Kd4 {[%clk 0:00:10.8]} 47... Kd7 {[%clk 0:00:19.6]} 48. Kc4 {[%clk
0:00:11.5]} 48... Ke6 {[%clk 0:00:20]} 49. Kxb4 {[%clk 0:00:12.2]} 49... Kxe5
{[%clk 0:00:20.5]} 50. Kc3 {[%clk 0:00:11.4]} 50... Kf4 {[%clk 0:00:21.4]} 51.
Kd2 {[%clk 0:00:11.8]} 51... Kg3 {[%clk 0:00:21.6]} 52. Ke2 {[%clk 0:00:12.3]}
52... Kxh4 {[%clk 0:00:21.7]} 53. Kf1 {[%clk 0:00:11.4]} 53... Kg3 {[%clk
0:00:21.6]} 54. Kg1 {[%clk 0:00:11.9]} 54... h4 {[%clk 0:00:22.1]} 55. Kh1
{[%clk 0:00:12.3]} 55... h3 {[%clk 0:00:22.6]} 56. Kg1 {[%clk 0:00:12.6]} 56...
h2+ {[%clk 0:00:23.1]} 57. Kh1 {[%clk 0:00:12.9]} 57... Kh3 {[%clk 0:00:24]}
1/2-1/2

[Event "Early-Titled-Tuesday-Blitz-January-30-2024"]
[Site "Chess.com"]
[Date "2024.01.30"]
[Round "2"]
[White "KorolDimitriy75"]
[Black "ketster"]
[Result "0-1"]
[WhiteElo "2353"]
[BlackElo "2583"]
[TimeControl "180+1"]
[EndTime "8:19:28 PST"]
[Termination "ketster won by checkmate"]

1. d4 {[%clk 0:03:00.9]} 1... d5 {[%clk 0:02:57.1]} 2. c4 {[%clk 0:03:01.8]}
2... e5 {[%clk 0:02:52.8]} 3. Nc3 {[%clk 0:03:01.7]} 3... dxc4 {[%clk
0:02:51.4]} 4. Nf3 {[%clk 0:03:00.7]} 4... exd4 {[%clk 0:02:47.5]} 5. Qxd4
{[%clk 0:03:01.6]} 5... Nc6 {[%clk 0:02:42.8]} 6. Qxd8+ {[%clk 0:02:59]} 6...
Nxd8 {[%clk 0:02:41.4]} 7. e4 {[%clk 0:02:47.5]} 7... Bb4 {[%clk 0:02:35.1]} 8.
Bxc4 {[%clk 0:02:46.1]} 8... Be6 {[%clk 0:02:34.8]} 9. Bxe6 {[%clk 0:02:17.2]}
9... Nxe6 {[%clk 0:02:35.7]} 10. Be3 {[%clk 0:02:17.4]} 10... Nf6 {[%clk
0:02:23.3]} 11. Nd2 {[%clk 0:01:25.2]} 11... Ng4 {[%clk 0:02:09.7]} 12. Nf1
{[%clk 0:00:45.9]} 12... O-O-O {[%clk 0:02:02.4]} 13. f3 {[%clk 0:00:38.5]}
13... Ne5 {[%clk 0:01:42.2]} 14. Ke2 {[%clk 0:00:23.6]} 14... Nc4 {[%clk
0:01:38.2]} 15. Rb1 {[%clk 0:00:20.2]} 15... Nxb2 {[%clk 0:01:32.7]} 16. Nd5
{[%clk 0:00:17.8]} 16... Ba3 {[%clk 0:01:27.5]} 17. Nd2 {[%clk 0:00:17.6]} 17...
c6 {[%clk 0:01:13.7]} 18. Nf4 {[%clk 0:00:17.3]} 18... Nd4+ {[%clk 0:00:58.4]}
19. Bxd4 {[%clk 0:00:17.1]} 19... Rxd4 {[%clk 0:00:59.3]} 20. Rhc1 {[%clk
0:00:16.3]} 20... Rhd8 {[%clk 0:00:39.3]} 21. Rc2 {[%clk 0:00:16.6]} 21... Na4
{[%clk 0:00:30.7]} 22. Nc4 {[%clk 0:00:16.5]} 22... Be7 {[%clk 0:00:23.1]} 23.
Na5 {[%clk 0:00:16.1]} 23... Nb6 {[%clk 0:00:19.4]} 24. Rb3 {[%clk 0:00:15.4]}
24... g5 {[%clk 0:00:19.1]} 25. Nh3 {[%clk 0:00:13.8]} 25... Bb4 {[%clk
0:00:14.7]} 26. Nxc6 {[%clk 0:00:11.3]} 26... bxc6 {[%clk 0:00:14.2]} 27. Nxg5
{[%clk 0:00:10.7]} 27... c5 {[%clk 0:00:07.9]} 28. Nxf7 {[%clk 0:00:10.7]} 28...
R8d7 {[%clk 0:00:06.3]} 29. Ne5 {[%clk 0:00:10.9]} 29... R7d6 {[%clk 0:00:06.8]}
30. Nf7 {[%clk 0:00:10.8]} 30... Rf6 {[%clk 0:00:07.1]} 31. Ng5 {[%clk
0:00:10.2]} 31... Rg6 {[%clk 0:00:07.5]} 32. h4 {[%clk 0:00:08.7]} 32... h6
{[%clk 0:00:07.9]} 33. Nh3 {[%clk 0:00:08.1]} 33... Rxg2+ {[%clk 0:00:07.8]} 34.
Ke3 {[%clk 0:00:09]} 34... Rxc2 {[%clk 0:00:04.5]} 35. Nf4 {[%clk 0:00:09.3]}
35... Rxa2 {[%clk 0:00:04.8]} 36. Ne6 {[%clk 0:00:08.9]} 36... Nc4+ {[%clk
0:00:05.3]} 37. Kf4 {[%clk 0:00:08.6]} 37... Rd6 {[%clk 0:00:05.6]} 38. Kf5
{[%clk 0:00:08.3]} 38... Ra3 {[%clk 0:00:04.7]} 39. Rb1 {[%clk 0:00:07.6]} 39...
Rxf3+ {[%clk 0:00:04.5]} 40. Kg4 {[%clk 0:00:06.6]} 40... Rf2 {[%clk 0:00:04.4]}
41. Nf4 {[%clk 0:00:06.1]} 41... Ne5+ {[%clk 0:00:04.8]} 42. Kg3 {[%clk
0:00:06.6]} 42... Rfd2 {[%clk 0:00:04.2]} 43. Re1 {[%clk 0:00:06.5]} 43... Rf6
{[%clk 0:00:04]} 44. Nh5 {[%clk 0:00:06.2]} 44... Rf3# {[%clk 0:00:03.9]} 0-1

[Event "Early-Titled-Tuesday-Blitz-January-30-2024"]
[Site "Chess.com"]
[Date "2024.01.30"]
[Round "2"]
[White "Ramosha"]
[Black "BocharovD"]
[Result "0-1"]
[WhiteElo "2565"]
[BlackElo "2841"]
[TimeControl "180+1"]
[EndTime "8:19:30 PST"]
[Termination "BocharovD won by resignation"]

1. e4 {[%clk 0:03:00.9]} 1... c5 {[%clk 0:02:59.5]} 2. Nf3 {[%clk 0:03:01.4]}
2... d6 {[%clk 0:02:59.7]} 3. Bb5+ {[%clk 0:03:01.2]} 3... Nd7 {[%clk
0:02:59.5]} 4. d4 {[%clk 0:03:01.3]} 4... cxd4 {[%clk 0:02:58.4]} 5. Qxd4 {[%clk
0:03:02]} 5... a6 {[%clk 0:02:57.5]} 6. Bxd7+ {[%clk 0:03:02.6]} 6... Bxd7
{[%clk 0:02:58.4]} 7. c4 {[%clk 0:03:03.3]} 7... Rc8 {[%clk 0:02:56.1]} 8. O-O
{[%clk 0:03:01.7]} 8... e5 {[%clk 0:02:48.7]} 9. Qd3 {[%clk 0:03:01.5]} 9... b5
{[%clk 0:02:48.7]} 10. b3 {[%clk 0:02:59.9]} 10... h6 {[%clk 0:02:46.2]} 11. Be3
{[%clk 0:02:56.1]} 11... Nf6 {[%clk 0:02:43.9]} 12. Nc3 {[%clk 0:02:55.8]} 12...
Qa5 {[%clk 0:02:40.7]} 13. Rfd1 {[%clk 0:02:37.6]} 13... Be7 {[%clk 0:02:37.1]}
14. Rac1 {[%clk 0:02:06.4]} 14... O-O {[%clk 0:02:35.9]} 15. h3 {[%clk
0:02:04.6]} 15... Rc7 {[%clk 0:02:25.3]} 16. Bd2 {[%clk 0:02:01.5]} 16... Qb6
{[%clk 0:02:23.5]} 17. Be3 {[%clk 0:02:00.7]} 17... Qb7 {[%clk 0:02:23.5]} 18.
cxb5 {[%clk 0:01:56.2]} 18... axb5 {[%clk 0:02:22.7]} 19. Ne2 {[%clk 0:01:55.2]}
19... Rxc1 {[%clk 0:02:14.4]} 20. Rxc1 {[%clk 0:01:56.1]} 20... Nxe4 {[%clk
0:02:13.4]} 21. a4 {[%clk 0:01:19.4]} 21... Ra8 {[%clk 0:02:01.1]} 22. Ra1
{[%clk 0:01:04.6]} 22... bxa4 {[%clk 0:01:57.2]} 23. bxa4 {[%clk 0:01:05.5]}
23... Rxa4 {[%clk 0:01:55.2]} 24. Rb1 {[%clk 0:01:05.7]} 24... Rb4 {[%clk
0:01:53.5]} 25. Ra1 {[%clk 0:01:02]} 25... Bf5 {[%clk 0:01:46.7]} 26. Ra7 {[%clk
0:00:58.4]} 26... Rb1+ {[%clk 0:01:27.1]} 27. Kh2 {[%clk 0:00:57.6]} 27... Nxf2
{[%clk 0:01:09.5]} 28. Rxb7 {[%clk 0:00:14.1]} 28... Bxd3 {[%clk 0:00:51.2]} 29.
Rxb1 {[%clk 0:00:14.5]} 29... Bxb1 {[%clk 0:00:48.9]} 30. Bxf2 {[%clk 0:00:15]}
30... Be4 {[%clk 0:00:42.6]} 31. Nd2 {[%clk 0:00:14.5]} 31... Bc6 {[%clk
0:00:41.6]} 32. g4 {[%clk 0:00:13.9]} 32... g6 {[%clk 0:00:40.5]} 33. Nc3 {[%clk
0:00:13.6]} 33... f5 {[%clk 0:00:39.8]} 34. gxf5 {[%clk 0:00:13.7]} 34... gxf5
{[%clk 0:00:40.7]} 35. Nc4 {[%clk 0:00:12.9]} 35... Kf7 {[%clk 0:00:39.5]} 36.
Be3 {[%clk 0:00:13.1]} 36... f4 {[%clk 0:00:37.4]} 37. Bd2 {[%clk 0:00:13.2]}
37... Ke6 {[%clk 0:00:37.6]} 38. Kg1 {[%clk 0:00:13.4]} 38... d5 {[%clk
0:00:35.7]} 39. Nb2 {[%clk 0:00:14]} 39... d4 {[%clk 0:00:30.2]} 40. Ncd1 {[%clk
0:00:12.8]} 40... h5 {[%clk 0:00:25.4]} 41. Nf2 {[%clk 0:00:11.6]} 41... Bd5
{[%clk 0:00:24.7]} 42. Nbd3 {[%clk 0:00:11.2]} 42... Kf5 {[%clk 0:00:24.2]} 43.
h4 {[%clk 0:00:07.6]} 43... Bxh4 {[%clk 0:00:22.5]} 44. Nb4 {[%clk 0:00:06.4]}
44... Bb7 {[%clk 0:00:20.9]} 45. Nfd3 {[%clk 0:00:06.8]} 45... Bf6 {[%clk
0:00:20.3]} 46. Nc2 {[%clk 0:00:07.1]} 46... Be4 {[%clk 0:00:19.4]} 47. Nde1
{[%clk 0:00:06.7]} 47... Bxc2 {[%clk 0:00:18.5]} 48. Nxc2 {[%clk 0:00:07.6]}
48... e4 {[%clk 0:00:19.2]} 49. Ba5 {[%clk 0:00:07]} 49... d3 {[%clk 0:00:19.4]}
50. Nb4 {[%clk 0:00:07.1]} 50... d2 {[%clk 0:00:18.9]} 0-1

[Event "Early-Titled-Tuesday-Blitz-January-30-2024"]
[Site "Chess.com"]
[Date "2024.01.30"]
[Round "2"]
[White "RobertoJBM"]
[Black "tetrix83"]
[Result "1-0"]
[WhiteElo "2825"]
[BlackElo "2563"]
[TimeControl "180+1"]
[EndTime "8:19:30 PST"]
[Termination "RobertoJBM won on time"]

1. d4 {[%clk 0:03:00.9]} 1... Nf6 {[%clk 0:02:59.2]} 2. Nf3 {[%clk 0:03:00.4]}
2... g6 {[%clk 0:02:59.4]} 3. e3 {[%clk 0:03:01.3]} 3... Bg7 {[%clk 0:02:58.7]}
4. Be2 {[%clk 0:03:01.9]} 4... O-O {[%clk 0:02:58.4]} 5. O-O {[%clk 0:03:02.8]}
5... d6 {[%clk 0:02:58.3]} 6. c4 {[%clk 0:03:01.8]} 6... Nbd7 {[%clk 0:02:58.9]}
7. Nc3 {[%clk 0:03:01]} 7... e5 {[%clk 0:02:59.8]} 8. b3 {[%clk 0:03:00.2]} 8...
Re8 {[%clk 0:02:59.1]} 9. Bb2 {[%clk 0:03:00.5]} 9... e4 {[%clk 0:02:58.8]} 10.
Nd2 {[%clk 0:03:00.3]} 10... Nf8 {[%clk 0:02:55.5]} 11. Qc2 {[%clk 0:03:01.2]}
11... Qe7 {[%clk 0:02:54.9]} 12. Rae1 {[%clk 0:03:01.7]} 12... h5 {[%clk
0:02:53.6]} 13. Qb1 {[%clk 0:03:02.1]} 13... Bf5 {[%clk 0:02:52.8]} 14. Bd1
{[%clk 0:03:02.4]} 14... h4 {[%clk 0:02:51.9]} 15. Bc2 {[%clk 0:03:02.7]} 15...
h3 {[%clk 0:02:50.8]} 16. g3 {[%clk 0:03:03.3]} 16... N8h7 {[%clk 0:02:49.2]}
17. f3 {[%clk 0:03:00.5]} 17... Ng5 {[%clk 0:02:44.6]} 18. g4 {[%clk 0:02:52.7]}
18... Bd7 {[%clk 0:01:30.2]} 19. Ndxe4 {[%clk 0:02:50.3]} 19... Nfxe4 {[%clk
0:01:25.6]} 20. Nxe4 {[%clk 0:02:49.1]} 20... Nxe4 {[%clk 0:01:15.1]} 21. Bxe4
{[%clk 0:02:50]} 21... c6 {[%clk 0:01:15.4]} 22. Bd3 {[%clk 0:02:44.4]} 22...
Qg5 {[%clk 0:01:14.4]} 23. Re2 {[%clk 0:01:52.3]} 23... Rxe3 {[%clk 0:01:10.2]}
24. Bc1 {[%clk 0:01:47.9]} 24... Bxd4 {[%clk 0:01:06.8]} 25. Bxe3 {[%clk
0:01:46.7]} 25... Bxe3+ {[%clk 0:01:06]} 26. Kh1 {[%clk 0:01:47.2]} 26... d5
{[%clk 0:01:04.6]} 27. Qe1 {[%clk 0:01:38.6]} 27... d4 {[%clk 0:01:03.3]} 28.
Qg3 {[%clk 0:01:38.6]} 28... Qh6 {[%clk 0:00:54]} 29. f4 {[%clk 0:01:35.3]}
29... a5 {[%clk 0:00:53.7]} 30. f5 {[%clk 0:01:30.6]} 30... g5 {[%clk
0:00:50.4]} 31. c5 {[%clk 0:01:19.1]} 31... Re8 {[%clk 0:00:40.1]} 32. Rf3
{[%clk 0:01:18.9]} 32... Qf8 {[%clk 0:00:36.7]} 33. Rc2 {[%clk 0:01:14.9]} 33...
Bf4 {[%clk 0:00:34.1]} 34. Qxh3 {[%clk 0:01:09.6]} 34... Re1+ {[%clk 0:00:31.1]}
35. Kg2 {[%clk 0:01:09.1]} 35... Qe7 {[%clk 0:00:30]} 36. f6 {[%clk 0:01:01.4]}
36... Qxf6 {[%clk 0:00:28.2]} 37. Rcf2 {[%clk 0:00:51.6]} 37... Be6 {[%clk
0:00:26.9]} 38. Bc4 {[%clk 0:00:39]} 38... Bxc4 {[%clk 0:00:25.5]} 39. bxc4
{[%clk 0:00:39.9]} 39... Re3 {[%clk 0:00:22.1]} 40. Rxe3 {[%clk 0:00:37.2]}
40... dxe3 {[%clk 0:00:21.6]} 41. Qxe3 {[%clk 0:00:37.5]} 41... Kg7 {[%clk
0:00:16.6]} 42. Qe4 {[%clk 0:00:33.3]} 42... Qc3 {[%clk 0:00:14.7]} 43. a4
{[%clk 0:00:23.1]} 43... Qb3 {[%clk 0:00:13.5]} 44. Qd4+ {[%clk 0:00:20]} 44...
Kh7 {[%clk 0:00:10.8]} 45. Re2 {[%clk 0:00:16.7]} 45... Qb1 {[%clk 0:00:04.2]}
46. Qe4+ {[%clk 0:00:14.6]} 46... Qxe4+ {[%clk 0:00:02.8]} 47. Rxe4 {[%clk
0:00:15.5]} 47... Kg6 {[%clk 0:00:02]} 48. Re7 {[%clk 0:00:14.6]} 48... Kf6
{[%clk 0:00:01.5]} 49. Rxb7 {[%clk 0:00:14.2]} 1-0

[Event "Early-Titled-Tuesday-Blitz-January-30-2024"]
[Site "Chess.com"]
[Date "2024.01.30"]
[Round "2"]
[White "SmirnovAlexandrA"]
[Black "Alexander_Donchenko"]
[Result "0-1"]
[WhiteElo "2604"]
[BlackElo "2942"]
[TimeControl "180+1"]
[EndTime "8:19:34 PST"]
[Termination "Alexander_Donchenko won by checkmate"]

1. e4 {[%clk 0:03:00.9]} 1... c6 {[%clk 0:03:00.2]} 2. d4 {[%clk 0:02:54.6]}
2... d5 {[%clk 0:03:01.1]} 3. e5 {[%clk 0:02:54.5]} 3... Bf5 {[%clk 0:03:01]} 4.
Nf3 {[%clk 0:02:54.2]} 4... e6 {[%clk 0:03:01.4]} 5. Be2 {[%clk 0:02:53.7]} 5...
Ne7 {[%clk 0:03:01.8]} 6. O-O {[%clk 0:02:52.7]} 6... h6 {[%clk 0:03:02.3]} 7.
Nbd2 {[%clk 0:02:50.3]} 7... Nd7 {[%clk 0:03:02.6]} 8. a4 {[%clk 0:02:49.9]}
8... g5 {[%clk 0:02:59.7]} 9. a5 {[%clk 0:02:46.1]} 9... a6 {[%clk 0:02:59.3]}
10. b4 {[%clk 0:02:41.1]} 10... Ng6 {[%clk 0:02:56.8]} 11. c3 {[%clk 0:02:40.6]}
11... Nf4 {[%clk 0:02:56.9]} 12. Nb3 {[%clk 0:02:33.5]} 12... Nxe2+ {[%clk
0:02:55.3]} 13. Qxe2 {[%clk 0:02:34.4]} 13... Bg7 {[%clk 0:02:54.9]} 14. Ne1
{[%clk 0:02:23.2]} 14... Qc7 {[%clk 0:02:51.6]} 15. Nd3 {[%clk 0:02:22.6]} 15...
f6 {[%clk 0:02:40.3]} 16. exf6 {[%clk 0:02:19.9]} 16... Bxf6 {[%clk 0:02:40.4]}
17. Nbc5 {[%clk 0:02:12.5]} 17... Nxc5 {[%clk 0:02:34.4]} 18. Nxc5 {[%clk
0:02:10.9]} 18... O-O-O {[%clk 0:02:26.3]} 19. f4 {[%clk 0:01:33.8]} 19... Rde8
{[%clk 0:01:55.9]} 20. Nd3 {[%clk 0:01:19.4]} 20... Be4 {[%clk 0:01:44.8]} 21.
Ne5 {[%clk 0:01:17.3]} 21... Bxe5 {[%clk 0:01:42.3]} 22. fxe5 {[%clk 0:01:17.4]}
22... Qh7 {[%clk 0:01:34.6]} 23. Rf6 {[%clk 0:01:11.2]} 23... Rhf8 {[%clk
0:01:33.6]} 24. Qf2 {[%clk 0:01:07.1]} 24... Rxf6 {[%clk 0:01:23.3]} 25. Qxf6
{[%clk 0:01:08]} 25... Re7 {[%clk 0:01:09.3]} 26. Be3 {[%clk 0:01:00.3]} 26...
Kd7 {[%clk 0:00:59.8]} 27. Qf2 {[%clk 0:00:21.2]} 27... Rf7 {[%clk 0:00:59.5]}
28. Qg3 {[%clk 0:00:20.3]} 28... Bd3 {[%clk 0:00:57]} 29. h4 {[%clk 0:00:18.5]}
29... gxh4 {[%clk 0:00:43.8]} 30. Qxh4 {[%clk 0:00:19.4]} 30... h5 {[%clk
0:00:39.3]} 31. Re1 {[%clk 0:00:18.5]} 31... Rg7 {[%clk 0:00:37.2]} 32. g3
{[%clk 0:00:15]} 32... Rg4 {[%clk 0:00:35.8]} 33. Qh2 {[%clk 0:00:12.6]} 33...
h4 {[%clk 0:00:35]} 34. Bf2 {[%clk 0:00:11.9]} 34... Qf5 {[%clk 0:00:24.4]} 35.
Re3 {[%clk 0:00:10.8]} 35... Kc7 {[%clk 0:00:18]} 36. Kh1 {[%clk 0:00:08.9]}
36... Be4+ {[%clk 0:00:18.3]} 37. Kg1 {[%clk 0:00:08.9]} 37... Kb8 {[%clk
0:00:19]} 38. Kf1 {[%clk 0:00:08.1]} 38... Bd3+ {[%clk 0:00:17.4]} 39. Ke1
{[%clk 0:00:07.9]} 39... Bc4 {[%clk 0:00:17.4]} 40. Kd2 {[%clk 0:00:02.8]} 40...
Qb1 {[%clk 0:00:16]} 41. Qg1 {[%clk 0:00:02.8]} 41... Qb2+ {[%clk 0:00:13.6]}
42. Kd1 {[%clk 0:00:02.5]} 42... Bb3+ {[%clk 0:00:12.4]} 43. Ke1 {[%clk
0:00:02.8]} 43... Bc4 {[%clk 0:00:08.3]} 44. Kd1 {[%clk 0:00:02.9]} 44... h3
{[%clk 0:00:07.9]} 45. Ke1 {[%clk 0:00:01]} 45... Qc1# {[%clk 0:00:07.5]} 0-1